Cogmind - Beta 16.1 @@@ ROGUE MODE // 2026.04.23 @ 00:07:38 Player: Shimejimeji Result: Destroyed by as-29001 with Assembled Heavy Rifle Performance ------------- Evolutions (0) 0 Regions Visited (3) 600 Robots Destroyed (31) 155 Value Destroyed (462) 462 Prototype IDs (26) 520 Alien Tech Used (0) 0 Bonus (-24) -24 TOTAL SCORE: 1713 Bonus ------- Aligned with FarCom 300 Friendly Fire -324 Cogmind --------- Core Integrity 0/250 Matter 270/300 Energy 82/100 System Corruption 1% Temperature Cool (0) Movement Core (750) Ox14 Location -10/Exiles Parts ------- > --- POWER (1) -------- (None) > --- PROPULSION (2) --- (None) > --- UTILITY (2) ------ High-capacity Storage Unit Experimental Sensor Array > --- WEAPON (2) ------- Longsword +1 > --- INVENTORY (20) --- Improved Ion Engine Light Nuclear Core Combat Airjet Seismic Detector Hardened Light Armor Plating Hardened Light Armor Plating Hardened Light Armor Plating Medium Laser Spread Laser Spread Laser Heavy Assault Rifle Heavy Assault Rifle Heavy Assault Rifle Heavy Assault Rifle Mini Grenade Launcher Mini Grenade Launcher Mini Grenade Launcher Mini Grenade Launcher Hammer Peak State ------------ > --- POWER ------------ Improved Ion Engine > --- PROPULSION ------- Light Treads Light Treads > --- UTILITY ---------- High-capacity Storage Unit Experimental Sensor Array > --- WEAPON ----------- Longsword +1 > --- INVENTORY -------- Improved Ion Engine Light Nuclear Core Combat Airjet Seismic Detector Hardened Light Armor Plating Hardened Light Armor Plating Hardened Light Armor Plating Medium Laser Spread Laser Spread Laser Heavy Assault Rifle Heavy Assault Rifle Heavy Assault Rifle Heavy Assault Rifle Mini Grenade Launcher Mini Grenade Launcher Mini Grenade Launcher Mini Grenade Launcher Hammer [Rating: 25] Favorites ----------- Power Improved Ion Engine Engine Improved Ion Engine Propulsion Light Treads Treads Light Treads Utility Hardened Light Armor Plating Device Experimental Sensor Array Storage Huge Storage Unit Processor Signal Interpreter Protection Hardened Light Armor Plating Weapon Spread Laser Energy Gun Spread Laser Launcher Mini Grenade Launcher Slashing Weapon Longsword +1 Build | -11 -10 -10 -10 ------- Run | Yrd Mat Min Exi Slots Evolved . | . . . . Power . | . . . . Propulsion . | . . . . Utility . | . . . . Weapon . | . . . . Parts Attached 19 | 8 6 4 1 Power 2 | 1 1 . . Engine 2 | 1 1 . . Core . | . . . . Reactor . | . . . . Propulsion 3 | 2 1 . . Treads 3 | 2 1 . . Leg . | . . . . Wheel . | . . . . Hover . | . . . . Flight . | . . . . Utility 7 | 2 2 3 . Device 2 | 1 . 1 . Storage 3 | 1 1 1 . Processor 1 | . . 1 . Hackware . | . . . . Protection 1 | . 1 . . Artifact . | . . . . Weapon 7 | 3 2 1 1 Energy Gun 5 | 3 2 . . Energy Cannon . | . . . . Ballistic Gun . | . . . . Ballistic Cannon . | . . . . Launcher 1 | . . 1 . Special Weapon . | . . . . Impact Weapon . | . . . . Slashing Weapon 1 | . . . 1 Piercing Weapon . | . . . . Special Melee Weapon . | . . . . Unidentified Prototypes 1 | . . 1 . Parts Lost 3 | . . . 3 Power 1 | . . . 1 Propulsion 2 | . . . 2 Utility . | . . . . Weapon . | . . . . Highest Loss Streak 3 | . . . 3 To Critical Strikes 2 | . . . 2 Average Backups 14 | 3 10 17 19 Power 1 | . 1 2 2 Propulsion . | 1 1 . 1 Utility 3 | . 1 4 4 Weapon 9 | 1 7 10 11 Tool/Special . | . . . . Unused Backups 19 | . 4 . 15 Power 3 | . 1 . 2 Propulsion 3 | . 2 . 1 Utility 3 | . . . 3 Weapon 10 | . 1 . 9 Tool/Special . | . . . . Average Slot Usage (%) 95 | . 99 100 73 Engine 13 | . 13 14 14 Treads 28 | . 28 28 28 Device 4 | . 4 . 13 Storage 14 | . 14 14 14 Processor 1 | . . 2 . Protection 8 | . 9 11 . Energy Gun 21 | . 27 23 . Launcher 1 | . . 4 . Peak Build Rating 25 | 7 14 21 25 Average Rating 13 | 4 11 14 18 On Entrance 8 | . 7 14 14 Avg Prop Armor Cover (%) 9 | . 9 . . Naked Turns . | . . . . Heaviest Build 98 | 15 98 98 51 Greatest Support 40 | 40 40 40 40 Greatest Overweight (x) 4 | 1 4 2 1 Average Overweight (x) 1 | . 1 1 1 Largest Inventory Capacity 25 | 8 25 25 20 Average Capacity 21 | 7 21 22 20 Most Carried 20 | 6 16 19 20 Average Carried 14 | 4 10 17 19 Final Capacity 25 | 8 25 20 20 Final Carried 19 | 5 16 19 19 Class Distribution -------------------- 100% | Mutant Dominant Class ---------------- Mutant | -10/Materials Mutant | -10/Mines Mutant | -10/Exiles Resources | -11 -10 -10 -10 ----------- Run | Yrd Mat Min Exi Matter Collected 540 | 172 246 122 . Remotely . | . . . . Salvage Created 683 | 147 454 82 . Parts 60 | 9 36 15 . Haulers Intercepted 2 | . 2 . . Recyclers Shooed 1 | . 1 . . Parts Field Recycled . | . . . . Retrieved Matter . | . . . . Parts Self-Destructed . | . . . . Prevented . | . . . . Parts Restored . | . . . . Kills | -11 -10 -10 -10 ------- Run | Yrd Mat Min Exi Combat Hostiles Destroyed 19 | . 13 6 . Guns 19 | . 13 6 . Classes Destroyed 7 | 2 5 . . Tunneler 5 | 4 . 1 . Hauler 2 | . 2 . . Recycler 2 | 1 1 . . Operator 1 | . 1 . . Watcher 2 | . 2 . . Swarmer 14 | . 8 6 . Grunt 5 | . 5 . . Best Kill Streak 3 | 3 3 3 . Combat Bots Only 3 | . 3 3 . Max Kills in Single Turn 2 | 1 2 2 . Gunslinging 1 | . 1 1 . Exploded . | . . . . Melee . | . . . . Uniques/NPCs Destroyed . | . . . . Combat | -11 -10 -10 -10 -------- Run | Yrd Mat Min Exi Hostile Shots Fired 99 | . 52 15 32 Missed 21 | . 13 2 6 Hits 78 | . 39 13 26 Projectile 78 | . 39 13 26 Critical Strikes 7 | . . . 7 Damage Taken 938 | . 371 160 407 Core 256 | . 75 8 173 Absorbed by Shields . | . . . . Regen/Repaired (Parts) 32 | . 32 . . Core Remaining (%) 100 | 100 . . . Volleys Fired 76 | 23 42 11 . Largest 2 | 1 2 2 . Hottest 130 | 40 130 130 . Shots Fired 124 | 23 84 17 . Gun 119 | 23 84 12 . Cannon . | . . . . Launcher 5 | . . 5 . Special . | . . . . Kinetic . | . . . . Thermal 97 | 23 62 12 . Explosive 5 | . . 5 . Electromagnetic 22 | . 22 . . Robot Hit Streak 8 | 8 7 3 . Robot Miss Streak 10 | 2 10 8 . Penetration Max . | . . . . Secondary Targets 3 | . 2 1 . Max Gunslinging Chain 1 | . 1 1 . Shots Hit Robots 95 | 19 59 10 7 Core Hits 78 | 6 55 15 2 Critical Kills . | . . . . Critical Parts Destroyed . | . . . . Critical Strikes 1 | . . . 1 Sever 1 | . . . 1 Melee Attacks 7 | . . . 7 Impact . | . . . . Slashing 7 | . . . 7 Piercing . | . . . . Sneak Attacks 1 | . . . 1 Combat Hostiles . | . . . . Follow-up Attacks . | . . . . Damage Inflicted 1370 | 199 674 128 369 Guns 944 | 199 658 87 . Cannons . | . . . . Explosions 3 | . . 3 . Melee 369 | . . . 369 Ramming 54 | . 16 38 . Kinetic . | . . . . Thermal 764 | 199 478 87 . Explosive 3 | . . 3 . Electromagnetic 180 | . 180 . . Impact . | . . . . Slashing 369 | . . . 369 Piercing . | . . . . Highest Corruption 1 | . 1 1 1 Average Corruption 1 | . 1 1 1 Corruption Purged . | . . . . Corruption Blocked . | . . . . Effects 35 | . 1 23 11 Message Errors 12 | . 1 8 3 Matter Fused 9 | . . 6 3 Heat Flow Errors 2 | . . 1 1 Energy Discharges 6 | . . 4 2 Data Loss (minor) 3 | . . 2 1 Data Loss (major) 3 | . . 2 1 Overload Shots . | . . . . Overflow Damage . | . . . . Projectiles . | . . . . Explosions . | . . . . Melee . | . . . . Knockbacks . | . . . . Impact . | . . . . Kinetic . | . . . . Secondary . | . . . . Self-Inflicted Damage 62 | . . 62 . Shots 2 | . . 2 . Rammed 7 | . 2 5 . Targets Rammed 9 | . 3 6 . Kicked . | . . . . Crushed 2 | . 1 1 . Highest Temperature 423 | . 423 284 255 Average Temperature 130 | . 131 125 128 Received Heat Transfer 96 | . 96 . . Effects 9 | . 9 . . Shutdowns 2 | . 2 . . Energy Bleed 4 | . 4 . . Interference 2 | . 2 . . Short Circuit 1 | . 1 . . Siege Activations . | . . . . Martial Activations . | . . . . Shielding Activations . | . . . . Robots Disrupted . | . . . . Combat Hostiles . | . . . . Robots Corrupted . | . . . . Combat Hostiles . | . . . . Parts Fried . | . . . . Impact Corruptions . | . . . . Robots Melted . | . . . . Combat Hostiles . | . . . . Parts Melted . | . . . . Heat Transferred 1140 | 450 585 105 . Parts Sabotaged . | . . . . Parts Stolen . | . . . . Parts Stripped . | . . . . Power Chain Reactions . | . . . . Alert | -11 -10 -10 -10 ------- Run | Yrd Mat Min Exi Maximum Alert Level . | . . . . Low Security (%) 100 | 100 100 100 . Level 1 . | . . . . Level 2 . | . . . . Level 3 . | . . . . Level 4 . | . . . . Level 5 . | . . . . High Security . | . . . . Max Security . | . . . . Peak Influence 104 | 5 104 70 . Initial . | . . . . Average 20 | 1 38 5 . Influence Increases 667 | 25 457 185 . Destroy 0b10 Robot/C 380 | . 260 120 . Destroy 0b10 Robot/NC 60 | 25 30 5 . Destroy Leader 88 | . 68 20 . Successful Hack 24 | . 24 . . Disable Machine 60 | . 60 . . Destroy Structure 25 | . . 25 . Lose Combat Pursuer 30 | . 15 15 . Influence Decreases 667 | 25 457 185 . Time Decay 667 | 25 457 185 . Squads Dispatched 3 | . 3 . . Investigation 2 | . 2 . . Extermination . | . . . . Reinforcement 1 | . 1 . . Assault . | . . . . Garrison . | . . . . Intercept . | . . . . Searches Triggered . | . . . . Construction Impeded . | . . . . Haulers Reinforced . | . . . . Active Scanning Responses . | . . . . Cargo Convoy Interrupts . | . . . . Stealth | -11 -10 -10 -10 --------- Run | Yrd Mat Min Exi Distress Signals 1 | . 1 . . Communications Jammed . | . . . . Distress Signals . | . . . . Times Spotted 37 | . 23 7 7 Peak Tracking Total 9 | . 4 3 9 Tactical Retreats 2 | . 1 1 . Traps | -11 -10 -10 -10 ------- Run | Yrd Mat Min Exi Traps Triggered 3 | . 3 . . Indirectly . | . . . . Trap Hack Attempts . | . . . . Triggered . | . . . . Disarmed . | . . . . Reprogrammed . | . . . . Reused . | . . . . Traps Extracted . | . . . . Installed . | . . . . Triggered . | . . . . Machines | -11 -10 -10 -10 ---------- Run | Yrd Mat Min Exi Machines Disabled 4 | . 4 . . Max in Single Turn 3 | . 3 . . Machines Repaired . | . . . . Machines Dismantled . | . . . . Machines Sabotaged . | . . . . Overloaded Fab Kills . | . . . . Hacking | -11 -10 -10 -10 --------- Run | Yrd Mat Min Exi Machines Accessed 10 | . 8 . 2 Terminals 6 | . 6 . . Fabricators . | . . . . Repair Stations 1 | . 1 . . Recycling Units 1 | . 1 . . Scanalyzers . | . . . . Garrison Access . | . . . . Total Hacks 22 | . 20 . 2 Successful 13 | . 11 . 2 Failed 9 | . 9 . . Catastrophic 1 | . 1 . . Database Lockouts . | . . . . Manual 13 | . 12 . 1 Terminals 16 | . 16 . . Fabricators . | . . . . Repair Stations 2 | . 2 . . Recycling Units 2 | . 2 . . Scanalyzers . | . . . . Garrison Access . | . . . . Terminal Hacks 5 | . 3 . 2 Record 1 | . . . 1 Robot Analysis 1 | . 1 . . Prototype ID Bank 1 | . 1 . . Branch Access Points 1 | . 1 . . Proto ID Catalog 1 | . . . 1 Fabricator Hacks . | . . . . Repair Station Hacks 2 | . 2 . . Scan Component 1 | . 1 . . Repair 1 | . 1 . . Recycling Unit Hacks . | . . . . Scanalyzer . | . . . . Garrison Access Hacks . | . . . . Unauthorized Hacks 6 | . 6 . . Terminals 6 | . 6 . . Botnet 1 | . 1 . . Skim 5 | . 5 . . Fabricators . | . . . . Repair Stations . | . . . . Recycling Units . | . . . . Scanalyzers . | . . . . Garrison Access . | . . . . Data Cores Recovered . | . . . . Used . | . . . . Hacking Detections 5 | . 5 . . Full Trace Events . | . . . . Feedback Events . | . . . . Feedback Blocked . | . . . . Robot Schematics Acquired . | . . . . Robots Built . | . . . . Authchips . | . . . . Time . | . . . . Total Robot Build Rating . | . . . . Part Schematics Acquired . | . . . . Parts Built . | . . . . Authchips . | . . . . Time . | . . . . Total Part Build Rating . | . . . . Part Studies Acquired . | . . . . Parts Repaired 1 | . 1 . . Time 32 | . 32 . . Parts Recycled . | . . . . Recycled Matter . | . . . . Retrieved Matter . | . . . . Retrieved Components . | . . . . Parts Scanalyzed . | . . . . Part Schematics Acquired . | . . . . Parts Damaged . | . . . . Bothacking | -11 -10 -10 -10 ------------ Run | Yrd Mat Min Exi Used RIF Installer . | . . . . Robots Hacked . | . . . . Non-combat . | . . . . Combat . | . . . . Robot Hacks Applied . | . . . . Relay Couplers Released . | . . . . Fabnet Peak Effective % . | . . . . Robots Rewired . | . . . . Allies Hacked . | . . . . Hacks Repelled . | . . . . Allies | -11 -10 -10 -10 -------- Run | Yrd Mat Min Exi Total Allies . | . . . . Largest Group . | . . . . Highest-Rated Group . | . . . . Highest-Rated Ally . | . . . . Total Orders . | . . . . Ally Attacks . | . . . . Total Damage . | . . . . Kills . | . . . . Allies Corrupted . | . . . . Allies Melted . | . . . . Intel | -11 -10 -10 -10 ------- Run | Yrd Mat Min Exi Active Infowar (turns) 2053 | 24 896 4 1129 Sensors 1133 | . . 4 1129 Seismic 920 | 24 896 . . Robot Analysis Total 1 | . 1 . . Derelict Logs Recovered 1 | . . 1 . Drone Launches . | . . . . Drone Recoveries . | . . . . Exploration | -11 -10 -10 -10 ------------- Run | Yrd Mat Min Exi Turns Passed 6705 | 137 2666 2728 1174 Spaces Moved 2267 | 48 759 978 482 Core 2 | 2 . . . Treads 2265 | 46 759 978 482 Legs . | . . . . Wheels . | . . . . Hover . | . . . . Flight . | . . . . Fastest Speed 50 | 50 160 240 240 Average Speed 267 | 156 285 273 240 Slowest Speed 480 | 160 480 320 240 Overloaded Moves . | . . . . Propulsion Burnouts . | . . . . Robots Hopped . | . . . . Potential Cave-ins 4 | . . 4 . Cave-ins Triggered . | . . . . Exploration Rate (%) 71 | 3 96 99 87 Regions Visited 3 Branch Regions 2 Pre-discovered Areas 3 | . 1 1 1 Known Exits Taken 2 | . 1 1 . Unknown Exits Taken 1 | 1 . . . Scrap Searched 1 | . . 1 . Spaces Dug 61 | . . 61 . Terrain Destroyed 61 | . . 61 . Melee . | . . . . Projectile . | . . . . AOE 61 | . . 61 . Terrain Rammed . | . . . . Walls Destroyed . | . . . . Machines Disabled . | . . . . Actions | -11 -10 -10 -10 --------- Run | Yrd Mat Min Exi Total 2755 | 84 1172 1005 494 Wait 326 | . 326 . . Move 2264 | 47 758 977 482 Hop . | . . . . Pick Up 26 | 6 17 3 . Fast Attach 11 | 6 3 1 1 Attach 1 | 1 . . . Detach 5 | . 2 1 2 Swap 17 | 1 11 4 1 Drop 12 | . 10 1 1 Fire 76 | 23 42 11 . Melee 7 | . . . 7 Ram . | . . . . Kick . | . . . . Crush 9 | . 3 6 . Escape Stasis . | . . . . Rewire 1 | . . 1 . Trap . | . . . . Miscellaneous . | . . . . Route ------- -11/Scrapyard -10/Materials (discovered 4 exits: *Mat x3 / *Min) -10/Mines (discovered 4 exits: *Mat x2 / *Exi / *Sub) -10/Exiles (discovered 1 exit: [*Min]) History --------- Turn | Location | Event 15 | -11/Scrapyard | Discovered new exit (range 15) 138 | -11/Scrapyard | Entered Materials 307 | -10/Materials | Build established: Mutant 571 | -10/Materials | Discovered new exit (range 6) 774 | -10/Materials | Identified exit to Mines 923 | -10/Materials | Discovered new exit (range 7) 1055 | -10/Materials | Discovered new exit (range 10) 1273 | -10/Materials | Repaired Imp. Ion Engine 1471 | -10/Materials | Learned Storage emergency access door positions 1532 | -10/Materials | Learned Storage stockpile data 1627 | -10/Materials | Learned location of 1 exit from Storage 1657 | -10/Materials | Learned 4 Recycling zone layouts 1749 | -10/Materials | Learned location of Mines (-10) 2804 | -10/Materials | Entered Mines 2805 | -10/Mines | Assembled infested the area 2855 | -10/Mines | Met 8R-AWN 3034 | -10/Mines | Discovered new exit (range 4) 3062 | -10/Mines | Discovered new exit (range 8) 3197 | -10/Mines | Joined a pair of Derelicts in attacking an 0b10 outpost 3203 | -10/Mines | Learned location of Storage (-9) 4219 | -10/Mines | Found a damaged Exp. Sensor Array with a note attached 4223 | -10/Mines | Found Prototype Device 4224 | -10/Mines | Identified Exp. Sensor Array 4323 | -10/Mines | Discovered new exit (range 12) 5119 | -10/Mines | Identified exit to Materials 5323 | -10/Mines | Identified exit to Subcaves 5520 | -10/Mines | Discovered new exit (range 5) 5530 | -10/Mines | Identified exit to Exiles 5532 | -10/Mines | Entered Exiles 5595 | -10/Exiles | Welcomed by 8R-AWN 5634 | -10/Exiles | Met EX-HEX 5715 | -10/Exiles | Met EX-BIN 5742 | -10/Exiles | Aligned with FarCom system 5744 | -10/Exiles | Given EX-Vault access code 5850 | -10/Exiles | Met EX-DEC 5864 | -10/Exiles | Learned location of Zion (-7) 5960 | -10/Exiles | Discovered new exit (range 10) 6112 | -10/Exiles | Visited The Gauntlet 6488 | -10/Exiles | Opened EX-Vault 6512 | -10/Exiles | Found Longsword +1 6567 | -10/Exiles | Warned to stay clear of 0b10 Research branches 6672 | -10/Exiles | Learned about 8R-AWN's background 6695 | -10/Exiles | Attacked by the Exiles 6701 | -10/Exiles | Core integrity fell below 50% 6706 | -10/Exiles | Core integrity fell below 20% 6706 | -10/Exiles | Destroyed by as-29001 with Assembled Heavy Rifle Last Messages --------------- 06698_ Penetrated by HV Slug. 06698_ HV Slug penetrates Wall. 06700_ Penetrated by HV Slug. 06700_ HV Slug penetrates Wall. 06700_ Penetrated by HV Slug. 06700_ Critical hit (Destroy). 06700_ Lgt. Treads destroyed. 06700_ HV Slug penetrates Wall. 06701_ Imp. Ion Engine destroyed. 06702_ Penetrated by HV Slug. 06702_ HV Slug penetrates Wall. 06702_ Penetrated by HV Slug. 06702_ Critical hit (Destroy). 06702_ Lgt. Treads destroyed. 06702_ HV Slug penetrates Wall. 06704_ Penetrated by HV Slug. 06704_ HV Slug penetrates Wall. 06704_ Penetrated by HV Slug. 06704_ HV Slug penetrates Wall. 06706_ 8R-AWN Prototype Device severed. Map ----- +----------------------------------------------------+ | """#?????????????????????????????????????????????? | | """#?????????????????????????????????????????????? | | """#?????????????????????????????????????????????? | | """#?????????????????????????????????????????????? | | """#?????????????????????????????????????????????? | | """#?????????????????????????????????????????????? | | """#?????????????????????????????????????????????? | | """#?????????????????????????????????????????????? | | """"?????????????????????????????????????????????? | | """#?????????????????????????????????????????????? | | """"?????????????????????????????????????????????? | | #?????????????????????????????????????????????? | | """#?????????????????????????????????????????????? | | ####?????????????????????????????????????????????? | | ?????????????????????????????????????????????????? | | ?????????????????????????????????????????????????? | | ?????????????????????????????????????????????????? | | ##########???????????????????????????????????? ??? | | """""""""##??????????????????????????????????? ? | | " """ """"##?????????????????????????????????# # | | "" " #???????????????????????????????## # | | " """#???????????????????????????????# | | " "#???????????#####???????????????# | | " "##?????????##" #??????????????## | | ""###???????#" g #?????????????## #? | | """#??????##" @ ##????????????# #? | | "#????### aa ###????????### #?? | | ##???# ########## #?? | | ##?## #""""## #??? | | ### * ##?? | | #; * #?? | | #### ##? | | a ""#?#"""""#### ## | | #"""##?#######??#### * | | a ######??????????????##### ! | | a ##???????????????????????### | | " a##??????????????????????????### | | """ ""#?????????????????????????????### | | ""#" "##??????????????????????????????#" | | """##"""""""##???????????????????????????????#### | | """#?#########???????????????????????????????????# | | ##???????????????????????????????????????????????# | | ?????????????????????????????????????????????????? | | ?????????????????????????????????????????????????? | | ?????????????????????????????????????????????????? | | ?????????????????????????????????????????????????? | | ?????????????????????????????????????????????????? | | ?????????????????????????????????????????????????? | | ?????????????????????????????????????????????????? | | ?????????????????????????????????????????????????? | +----------------------------------------------------+ Best States ------------- Heat Dissipation 25 Energy Generation 12 Energy Capacity 265 Matter Stores 300 Matter Capacity 300 Sight Range 16 Robot Scan Range 20 Terrain Scan Density 10 Armor Coverage 150 Evasion (%) 40 Recoil Reduction 2 Item Schematics ----------------- None Robot Schematics ------------------ None Fabricated ------------ Nothing Repaired ---------- Imp. Ion Engine | 54% | -10/Materials Studied --------- None Alien Tech Used ----------------- None Achievements -------------- None Challenges ------------ None Game ------ Seed MassPulsarPropulsion Manual? 0 Play Time 00:28:02 Cumulative 47.4 hours Start 2026.04.22 @ 22:49:53 End 2026.04.23 @ 00:07:38 Sessions 1 Manual Loads 0 Difficulty Rogue Special Mode None Game No. 29 Rogue 29 Adventurer 0 Explorer 0 Win Type - Total 0 Types 0/0/0/0/0/0/0/0/0/0 Lore% 41 Gallery% 29 Achievement% 27 Wizard Run 0 Options --------- Layout 0 ASCII 0 Keyboard 1 Movement Arrows Keybinds 0 Fullscreen 2 Font 18/SmallcapsGlow Map View 76x50 Zoom Use 0% Tactical HUD 1 Map Filters NONE Filters NONE Steam 1 RUN: 7d9b815f-caf2-4cd1-92a4-4c533f0f82fa